[Event "*** SCC Grand Prix: Titled Tuesday Blitz"]
[Site "Chess.com"]
[Date "2020.07.21"]
[Round "6"]
[White "mamey78"]
[Black "Konavets"]
[Result "0-1"]
[WhiteElo "2520"]
[BlackElo "3043"]
[TimeControl "180+1"]
[EndTime "11:03:45 PDT"]
[Termination "Konavets won by resignation"]

1. e4 {[%clk 0:03:00.9]} 1... c5 {[%clk 0:02:59.4]} 2. Nf3 {[%clk 0:02:58.8]}
2... Nc6 {[%clk 0:03:00.3]} 3. c3 {[%clk 0:02:58.4]} 3... Nf6 {[%clk 0:02:59.8]}
4. e5 {[%clk 0:02:58.6]} 4... Nd5 {[%clk 0:03:00]} 5. d4 {[%clk 0:02:59.5]} 5...
cxd4 {[%clk 0:03:00.8]} 6. Bc4 {[%clk 0:02:59.5]} 6... e6 {[%clk 0:03:01.7]} 7.
cxd4 {[%clk 0:02:58.9]} 7... Nb6 {[%clk 0:03:01.4]} 8. Bd3 {[%clk 0:02:57.4]}
8... Nb4 {[%clk 0:02:58.4]} 9. Be4 {[%clk 0:02:23.6]} 9... d5 {[%clk 0:02:58.1]}
10. exd6 {[%clk 0:02:22.8]} 10... Bxd6 {[%clk 0:02:58.3]} 11. O-O {[%clk
0:02:22.6]} 11... Bd7 {[%clk 0:02:58.9]} 12. Nc3 {[%clk 0:02:22.1]} 12... Bc6
{[%clk 0:02:58.9]} 13. Bg5 {[%clk 0:02:13.6]} 13... Be7 {[%clk 0:02:47.9]} 14.
Bxe7 {[%clk 0:02:11.1]} 14... Qxe7 {[%clk 0:02:48.8]} 15. Bxc6+ {[%clk
0:02:08.3]} 15... Nxc6 {[%clk 0:02:48.8]} 16. d5 {[%clk 0:02:07.5]} 16... O-O-O
{[%clk 0:02:48.8]} 17. Rc1 {[%clk 0:01:44.9]} 17... Nxd5 {[%clk 0:02:48.6]} 18.
Nb5 {[%clk 0:01:44.1]} 18... Kb8 {[%clk 0:02:46.5]} 19. Qa4 {[%clk 0:01:22.8]}
19... Qb4 {[%clk 0:02:45.2]} 20. Qxb4 {[%clk 0:01:17.9]} 20... Ndxb4 {[%clk
0:02:46.1]} 21. a3 {[%clk 0:01:12.1]} 21... Nd3 {[%clk 0:02:46.5]} 22. Rc2
{[%clk 0:01:04.6]} 22... Rd7 {[%clk 0:02:47]} 23. Rd1 {[%clk 0:00:58.5]} 23...
Rhd8 {[%clk 0:02:46.5]} 24. Rcd2 {[%clk 0:00:47.1]} 24... Na5 {[%clk 0:02:45.3]}
25. Ne1 {[%clk 0:00:38.2]} 25... Ne5 {[%clk 0:02:42.2]} 26. Rxd7 {[%clk
0:00:36.4]} 26... Rxd7 {[%clk 0:02:43.1]} 27. Rxd7 {[%clk 0:00:36.1]} 27... Nxd7
{[%clk 0:02:44]} 28. Nd6 {[%clk 0:00:36.1]} 28... f6 {[%clk 0:02:43]} 29. Ne8
{[%clk 0:00:35.3]} 29... g6 {[%clk 0:02:43]} 30. Ng7 {[%clk 0:00:34.5]} 30... e5
{[%clk 0:02:40.8]} 0-1

[Event "*** SCC Grand Prix: Titled Tuesday Blitz"]
[Site "Chess.com"]
[Date "2020.07.21"]
[Round "6"]
[White "maxip32"]
[Black "ItsCheckM8Mate"]
[Result "0-1"]
[WhiteElo "2415"]
[BlackElo "2305"]
[TimeControl "180+1"]
[EndTime "11:03:57 PDT"]
[Termination "ItsCheckM8Mate won by resignation"]

1. e4 {[%clk 0:03:00.9]} 1... e5 {[%clk 0:02:59.5]} 2. Nf3 {[%clk 0:03:00.7]}
2... Nc6 {[%clk 0:02:59.7]} 3. Bc4 {[%clk 0:03:00.6]} 3... Nf6 {[%clk
0:02:59.7]} 4. d3 {[%clk 0:03:00.2]} 4... h6 {[%clk 0:02:59.7]} 5. O-O {[%clk
0:02:53.7]} 5... d6 {[%clk 0:02:59.4]} 6. c3 {[%clk 0:02:53.8]} 6... g6 {[%clk
0:02:58.8]} 7. Re1 {[%clk 0:02:51.6]} 7... Bg7 {[%clk 0:02:58.9]} 8. a4 {[%clk
0:02:51.6]} 8... O-O {[%clk 0:02:58.5]} 9. Nbd2 {[%clk 0:02:50.3]} 9... Be6
{[%clk 0:02:49.7]} 10. Bxe6 {[%clk 0:02:49.1]} 10... fxe6 {[%clk 0:02:49.7]} 11.
Qb3 {[%clk 0:02:26.8]} 11... Qc8 {[%clk 0:02:48.4]} 12. d4 {[%clk 0:02:15.1]}
12... exd4 {[%clk 0:02:41.8]} 13. cxd4 {[%clk 0:02:16]} 13... Kh7 {[%clk
0:02:39.5]} 14. d5 {[%clk 0:01:47.8]} 14... exd5 {[%clk 0:02:31.5]} 15. exd5
{[%clk 0:01:48.7]} 15... Ne5 {[%clk 0:02:23.1]} 16. Nxe5 {[%clk 0:01:47.2]}
16... dxe5 {[%clk 0:02:22.3]} 17. Rxe5 {[%clk 0:01:26.4]} 17... Ng4 {[%clk
0:02:21]} 18. Re2 {[%clk 0:01:26]} 18... Qf5 {[%clk 0:02:14.6]} 19. Nf3 {[%clk
0:01:24.3]} 19... Rae8 {[%clk 0:02:06.4]} 20. Rxe8 {[%clk 0:01:06.9]} 20... Rxe8
{[%clk 0:02:05.8]} 21. h3 {[%clk 0:01:01.6]} 21... Re1+ {[%clk 0:01:56.8]} 0-1

[Event "*** SCC Grand Prix: Titled Tuesday Blitz"]
[Site "Chess.com"]
[Date "2020.07.21"]
[Round "6"]
[White "BogdanDeac"]
[Black "PavelShkapenko"]
[Result "1-0"]
[WhiteElo "2800"]
[BlackElo "2634"]
[TimeControl "180+1"]
[EndTime "11:03:58 PDT"]
[Termination "BogdanDeac won by resignation"]

1. Nf3 {[%clk 0:03:00.9]} 1... Nf6 {[%clk 0:02:59.4]} 2. c4 {[%clk 0:03:00.3]}
2... e6 {[%clk 0:02:59.5]} 3. g3 {[%clk 0:03:00.1]} 3... a6 {[%clk 0:02:58.7]}
4. b3 {[%clk 0:02:58.4]} 4... b5 {[%clk 0:02:58.8]} 5. Nc3 {[%clk 0:02:57.8]}
5... b4 {[%clk 0:02:50]} 6. Na4 {[%clk 0:02:57.6]} 6... d5 {[%clk 0:02:50.6]} 7.
Bg2 {[%clk 0:02:53.2]} 7... c5 {[%clk 0:02:46]} 8. cxd5 {[%clk 0:02:49.1]} 8...
Nxd5 {[%clk 0:02:45.5]} 9. Bb2 {[%clk 0:02:47.4]} 9... Nd7 {[%clk 0:02:43.6]}
10. O-O {[%clk 0:02:44]} 10... Bb7 {[%clk 0:02:43.4]} 11. Rc1 {[%clk 0:02:43.5]}
11... Rc8 {[%clk 0:02:43.2]} 12. d4 {[%clk 0:02:36.8]} 12... N5f6 {[%clk
0:02:27.9]} 13. dxc5 {[%clk 0:02:24.5]} 13... Nxc5 {[%clk 0:02:26]} 14. Qxd8+
{[%clk 0:02:23.6]} 14... Kxd8 {[%clk 0:02:26.5]} 15. Ne5 {[%clk 0:01:08.9]}
15... Bxg2 {[%clk 0:02:22.7]} 16. Kxg2 {[%clk 0:01:08.9]} 16... Ke8 {[%clk
0:02:15.8]} 17. Nd3 {[%clk 0:01:08.3]} 17... Nfd7 {[%clk 0:02:14.6]} 18. Ndxc5
{[%clk 0:00:59.5]} 18... Rxc5 {[%clk 0:01:45.7]} 19. Nxc5 {[%clk 0:00:58.5]}
19... Bxc5 {[%clk 0:01:46.3]} 20. Rfd1 {[%clk 0:00:56.7]} 1-0

[Event "*** SCC Grand Prix: Titled Tuesday Blitz"]
[Site "Chess.com"]
[Date "2020.07.21"]
[Round "6"]
[White "chargemax23"]
[Black "Fischerev7"]
[Result "1-0"]
[WhiteElo "2608"]
[BlackElo "2348"]
[TimeControl "180+1"]
[EndTime "11:04:24 PDT"]
[Termination "chargemax23 won by checkmate"]

1. e4 {[%clk 0:03:00.9]} 1... c5 {[%clk 0:02:59.6]} 2. Nf3 {[%clk 0:03:01]} 2...
d6 {[%clk 0:02:59.2]} 3. Bb5+ {[%clk 0:03:00.7]} 3... Nd7 {[%clk 0:02:58.6]} 4.
a4 {[%clk 0:03:00.5]} 4... a6 {[%clk 0:02:58.5]} 5. Bd3 {[%clk 0:03:00]} 5... g6
{[%clk 0:02:57.9]} 6. O-O {[%clk 0:02:59.5]} 6... Bg7 {[%clk 0:02:58.2]} 7. Re1
{[%clk 0:02:59.8]} 7... e6 {[%clk 0:02:58]} 8. c3 {[%clk 0:02:59.7]} 8... Ne7
{[%clk 0:02:57.9]} 9. Bf1 {[%clk 0:02:58.6]} 9... O-O {[%clk 0:02:58]} 10. d4
{[%clk 0:02:58.6]} 10... Qc7 {[%clk 0:02:58]} 11. Na3 {[%clk 0:02:56.6]} 11...
b6 {[%clk 0:02:55.6]} 12. Nc4 {[%clk 0:02:55.1]} 12... Bb7 {[%clk 0:02:55.7]}
13. dxc5 {[%clk 0:02:54.3]} 13... dxc5 {[%clk 0:02:47.2]} 14. Bg5 {[%clk
0:02:46.8]} 14... Nf6 {[%clk 0:02:25]} 15. Qd6 {[%clk 0:02:38.2]} 15... Qxd6
{[%clk 0:02:11]} 16. Nxd6 {[%clk 0:02:37.8]} 16... Bc6 {[%clk 0:02:11.4]} 17. e5
{[%clk 0:02:37.9]} 17... Nfd5 {[%clk 0:01:55.7]} 18. c4 {[%clk 0:02:36.5]} 18...
Nb4 {[%clk 0:01:30.9]} 19. Bxe7 {[%clk 0:02:34.5]} 19... Rfe8 {[%clk 0:01:19.1]}
20. Nxe8 {[%clk 0:02:33.7]} 20... Rxe8 {[%clk 0:01:18.5]} 21. Bf6 {[%clk
0:02:34]} 21... Nc2 {[%clk 0:01:17.1]} 22. Rec1 {[%clk 0:02:30.6]} 22... Nxa1
{[%clk 0:01:16.8]} 23. Rxa1 {[%clk 0:02:30.8]} 23... Bxf6 {[%clk 0:01:14.9]} 24.
exf6 {[%clk 0:02:30.9]} 24... Rd8 {[%clk 0:01:07.5]} 25. Ne5 {[%clk 0:02:30.6]}
25... Be4 {[%clk 0:01:00.5]} 26. f3 {[%clk 0:02:29.2]} 26... Bb7 {[%clk
0:00:59.3]} 27. a5 {[%clk 0:02:28.7]} 27... bxa5 {[%clk 0:00:57.4]} 28. Rxa5
{[%clk 0:02:28.3]} 28... Rd2 {[%clk 0:00:52.7]} 29. Rxc5 {[%clk 0:02:26.8]}
29... Rxb2 {[%clk 0:00:51.5]} 30. Rc7 {[%clk 0:02:26.7]} 30... a5 {[%clk
0:00:48.4]} 31. Nxf7 {[%clk 0:02:25.5]} 31... a4 {[%clk 0:00:47.7]} 32. Ng5
{[%clk 0:02:25.1]} 32... a3 {[%clk 0:00:29.8]} 33. Rg7+ {[%clk 0:02:24.4]} 33...
Kf8 {[%clk 0:00:26.4]} 34. Nxe6+ {[%clk 0:02:24]} 34... Ke8 {[%clk 0:00:26.6]}
35. Re7# {[%clk 0:02:23.2]} 1-0

[Event "*** SCC Grand Prix: Titled Tuesday Blitz"]
[Site "Chess.com"]
[Date "2020.07.21"]
[Round "6"]
[White "krzyzan94"]
[Black "GianmarcoVaR"]
[Result "1-0"]
[WhiteElo "2647"]
[BlackElo "2474"]
[TimeControl "180+1"]
[EndTime "11:04:28 PDT"]
[Termination "krzyzan94 won on time"]

1. e4 {[%clk 0:03:00.9]} 1... c5 {[%clk 0:02:29.7]} 2. Nf3 {[%clk 0:03:00.3]}
2... d6 {[%clk 0:02:30.2]} 3. d4 {[%clk 0:03:00.4]} 3... cxd4 {[%clk 0:02:30.9]}
4. Nxd4 {[%clk 0:03:01.2]} 4... Nf6 {[%clk 0:02:26.8]} 5. Nc3 {[%clk 0:03:01.4]}
5... a6 {[%clk 0:02:27.4]} 6. Bg5 {[%clk 0:03:01.1]} 6... Nbd7 {[%clk
0:02:27.2]} 7. f4 {[%clk 0:03:00.8]} 7... Qc7 {[%clk 0:02:27.1]} 8. Qf3 {[%clk
0:03:00]} 8... h6 {[%clk 0:02:25]} 9. Bxf6 {[%clk 0:02:59.6]} 9... Nxf6 {[%clk
0:02:25.5]} 10. f5 {[%clk 0:03:00.1]} 10... Qc5 {[%clk 0:02:25.2]} 11. O-O-O
{[%clk 0:02:59.7]} 11... g5 {[%clk 0:02:25.6]} 12. e5 {[%clk 0:02:58]} 12...
dxe5 {[%clk 0:01:45.3]} 13. Ndb5 {[%clk 0:02:55.5]} 13... e4 {[%clk 0:00:52.8]}
14. Nxe4 {[%clk 0:02:52.8]} 14... Nxe4 {[%clk 0:00:49.1]} 15. Qxe4 {[%clk
0:02:53.7]} 15... Bg7 {[%clk 0:00:44.7]} 16. Rd5 {[%clk 0:02:39.6]} 16... Qb6
{[%clk 0:00:44.2]} 17. Nd6+ {[%clk 0:02:34.5]} 17... Kf8 {[%clk 0:00:21.3]} 18.
Nc4 {[%clk 0:02:34.4]} 18... Qc7 {[%clk 0:00:15.6]} 19. Qe3 {[%clk 0:02:31.9]}
19... Bf6 {[%clk 0:00:02.5]} 20. Nb6 {[%clk 0:02:08.9]} 1-0

[Event "*** SCC Grand Prix: Titled Tuesday Blitz"]
[Site "Chess.com"]
[Date "2020.07.21"]
[Round "6"]
[White "mishanick"]
[Black "Aronyak1"]
[Result "1-0"]
[WhiteElo "2916"]
[BlackElo "2792"]
[TimeControl "180+1"]
[EndTime "11:04:29 PDT"]
[Termination "mishanick won by resignation"]

1. d4 {[%clk 0:03:00.8]} 1... d5 {[%clk 0:02:59.6]} 2. c4 {[%clk 0:03:01.3]}
2... dxc4 {[%clk 0:03:00.5]} 3. Nf3 {[%clk 0:03:01.4]} 3... Nf6 {[%clk
0:03:00.3]} 4. e3 {[%clk 0:03:01.9]} 4... e6 {[%clk 0:03:00.9]} 5. Bxc4 {[%clk
0:03:02.3]} 5... c5 {[%clk 0:03:01.3]} 6. O-O {[%clk 0:03:02.8]} 6... a6 {[%clk
0:03:01.4]} 7. dxc5 {[%clk 0:03:00.2]} 7... Bxc5 {[%clk 0:03:02.3]} 8. Qxd8+
{[%clk 0:02:59.4]} 8... Kxd8 {[%clk 0:03:03.2]} 9. Nfd2 {[%clk 0:03:00]} 9...
Nc6 {[%clk 0:02:50.4]} 10. Nb3 {[%clk 0:02:55.8]} 10... Bd6 {[%clk 0:02:44]} 11.
Be2 {[%clk 0:02:55.4]} 11... Ke7 {[%clk 0:02:44.1]} 12. f3 {[%clk 0:02:53]}
12... Rd8 {[%clk 0:02:39.2]} 13. Nc3 {[%clk 0:02:49.3]} 13... Bd7 {[%clk
0:02:35.8]} 14. e4 {[%clk 0:02:49.7]} 14... Rac8 {[%clk 0:02:35]} 15. Be3 {[%clk
0:02:50]} 15... Be8 {[%clk 0:02:26]} 16. Rfd1 {[%clk 0:02:48.9]} 16... Bb4
{[%clk 0:02:01.8]} 17. Kf2 {[%clk 0:02:38.7]} 17... Rxd1 {[%clk 0:01:59]} 18.
Rxd1 {[%clk 0:02:39.6]} 18... Rd8 {[%clk 0:01:59.3]} 19. Rc1 {[%clk 0:02:39.1]}
19... Nd7 {[%clk 0:01:50.9]} 20. Na4 {[%clk 0:02:29.9]} 20... Rc8 {[%clk
0:01:41.3]} 21. a3 {[%clk 0:02:27.8]} 21... Bd6 {[%clk 0:01:39.8]} 22. Na5
{[%clk 0:02:20.5]} 22... Nde5 {[%clk 0:00:49.3]} 23. Nxb7 {[%clk 0:02:17.8]}
23... Rb8 {[%clk 0:00:41.3]} 24. Nxd6 {[%clk 0:02:17.7]} 24... Kxd6 {[%clk
0:00:41.4]} 25. f4 {[%clk 0:02:05.3]} 25... Nd7 {[%clk 0:00:39.3]} 26. e5+
{[%clk 0:01:58]} 26... Kc7 {[%clk 0:00:39.3]} 27. Bxa6 {[%clk 0:01:51.4]} 1-0

[Event "*** SCC Grand Prix: Titled Tuesday Blitz"]
[Site "Chess.com"]
[Date "2020.07.21"]
[Round "6"]
[White "S2PAc"]
[Black "Artyom_ChessMate"]
[Result "0-1"]
[WhiteElo "2780"]
[BlackElo "2591"]
[TimeControl "180+1"]
[EndTime "11:04:37 PDT"]
[Termination "Artyom_ChessMate won by resignation"]

1. d4 {[%clk 0:03:00.9]} 1... d5 {[%clk 0:03:00]} 2. Nf3 {[%clk 0:03:00]} 2...
Nf6 {[%clk 0:03:00.2]} 3. g3 {[%clk 0:03:00.3]} 3... e6 {[%clk 0:03:00.4]} 4.
Bg2 {[%clk 0:03:00.6]} 4... Be7 {[%clk 0:03:01.1]} 5. O-O {[%clk 0:03:01.2]}
5... O-O {[%clk 0:03:02]} 6. c4 {[%clk 0:03:01.9]} 6... dxc4 {[%clk 0:03:02.9]}
7. Ne5 {[%clk 0:03:02.5]} 7... Nc6 {[%clk 0:03:02.8]} 8. Bxc6 {[%clk 0:03:03]}
8... bxc6 {[%clk 0:03:03.7]} 9. Nxc6 {[%clk 0:03:03.7]} 9... Qe8 {[%clk
0:03:04.4]} 10. Nxe7+ {[%clk 0:03:04.6]} 10... Qxe7 {[%clk 0:03:05.3]} 11. Qc2
{[%clk 0:03:05.1]} 11... c5 {[%clk 0:02:37]} 12. Qxc4 {[%clk 0:03:01.9]} 12...
cxd4 {[%clk 0:02:35.5]} 13. Qxd4 {[%clk 0:03:02.8]} 13... e5 {[%clk 0:02:30.3]}
14. Qh4 {[%clk 0:03:02.5]} 14... Qb7 {[%clk 0:02:27.2]} 15. Nc3 {[%clk
0:02:59.7]} 15... Be6 {[%clk 0:02:20.4]} 16. b3 {[%clk 0:02:52.5]} 16... Rac8
{[%clk 0:02:13.5]} 17. Bb2 {[%clk 0:02:52.5]} 17... Rfd8 {[%clk 0:02:13.5]} 18.
Rfd1 {[%clk 0:02:52.4]} 18... h6 {[%clk 0:02:11.1]} 19. Rac1 {[%clk 0:02:28.6]}
19... Kh7 {[%clk 0:01:58.1]} 20. Na4 {[%clk 0:02:02.7]} 20... Rxd1+ {[%clk
0:01:17.5]} 21. Rxd1 {[%clk 0:02:03.6]} 21... g5 {[%clk 0:01:17]} 22. Nc5 {[%clk
0:01:49.8]} 22... Rxc5 {[%clk 0:01:14.2]} 23. Qa4 {[%clk 0:01:50.4]} 23... Bh3
{[%clk 0:01:05.3]} 24. f3 {[%clk 0:01:50.2]} 24... Rc2 {[%clk 0:00:58.5]} 25.
Bxe5 {[%clk 0:01:47.9]} 25... Rxe2 {[%clk 0:00:45.9]} 26. Rd3 {[%clk 0:01:38.8]}
26... Rxe5 {[%clk 0:00:40.2]} 0-1

[Event "*** SCC Grand Prix: Titled Tuesday Blitz"]
[Site "Chess.com"]
[Date "2020.07.21"]
[Round "6"]
[White "MidnightFox"]
[Black "Munkhzul_Turmunkh"]
[Result "0-1"]
[WhiteElo "2394"]
[BlackElo "2599"]
[TimeControl "180+1"]
[EndTime "11:04:47 PDT"]
[Termination "Munkhzul_Turmunkh won by resignation"]

1. e4 {[%clk 0:02:59.4]} 1... c5 {[%clk 0:02:59.5]} 2. Nf3 {[%clk 0:02:59.4]}
2... d6 {[%clk 0:02:59.4]} 3. d4 {[%clk 0:02:59.6]} 3... cxd4 {[%clk 0:03:00.3]}
4. Nxd4 {[%clk 0:02:59.7]} 4... Nf6 {[%clk 0:02:59.6]} 5. Nc3 {[%clk 0:02:59.3]}
5... a6 {[%clk 0:02:59.4]} 6. Nb3 {[%clk 0:02:57.7]} 6... e6 {[%clk 0:02:59]} 7.
g4 {[%clk 0:02:56.9]} 7... b5 {[%clk 0:02:58.7]} 8. g5 {[%clk 0:02:56.9]} 8...
b4 {[%clk 0:02:57.4]} 9. gxf6 {[%clk 0:02:55.1]} 9... bxc3 {[%clk 0:02:57.2]}
10. fxg7 {[%clk 0:02:54.8]} 10... Bxg7 {[%clk 0:02:54.6]} 11. bxc3 {[%clk
0:02:53.5]} 11... Bxc3+ {[%clk 0:02:49.1]} 12. Bd2 {[%clk 0:02:51.3]} 12... Bxa1
{[%clk 0:02:45.7]} 13. Qxa1 {[%clk 0:02:50.1]} 13... Rg8 {[%clk 0:02:42.9]} 14.
h4 {[%clk 0:02:28.9]} 14... Bb7 {[%clk 0:02:31.2]} 15. Qd4 {[%clk 0:02:23.6]}
15... Nc6 {[%clk 0:02:25.2]} 16. Qa4 {[%clk 0:02:19.8]} 16... Qd7 {[%clk
0:02:19.8]} 17. Bd3 {[%clk 0:02:07.6]} 17... Ne5 {[%clk 0:02:15.9]} 18. Qb4
{[%clk 0:01:54.1]} 18... f5 {[%clk 0:02:02.4]} 19. Na5 {[%clk 0:01:33.2]} 19...
Bxe4 {[%clk 0:01:58]} 20. Bxe4 {[%clk 0:01:33]} 20... fxe4 {[%clk 0:01:58.9]}
21. Qxe4 {[%clk 0:01:29]} 21... Rb8 {[%clk 0:01:56.5]} 22. Nb3 {[%clk
0:01:19.2]} 22... a5 {[%clk 0:01:57.4]} 23. Bxa5 {[%clk 0:01:15.5]} 23... Rc8
{[%clk 0:01:52.3]} 24. Bd2 {[%clk 0:01:05.1]} 24... Rc4 {[%clk 0:01:39.1]} 25.
Qe2 {[%clk 0:01:03.2]} 25... Rxc2 {[%clk 0:01:30.1]} 26. Kf1 {[%clk 0:00:51.4]}
26... Qc6 {[%clk 0:01:24.9]} 27. Rh3 {[%clk 0:00:50.9]} 27... Qg2+ {[%clk
0:01:21.7]} 28. Ke1 {[%clk 0:00:50.7]} 28... Qxh3 {[%clk 0:01:18]} 0-1

[Event "*** SCC Grand Prix: Titled Tuesday Blitz"]
[Site "Chess.com"]
[Date "2020.07.21"]
[Round "6"]
[White "CzechmVIII"]
[Black "Alindsay211"]
[Result "1/2-1/2"]
[WhiteElo "2201"]
[BlackElo "2286"]
[TimeControl "180+1"]
[EndTime "11:04:56 PDT"]
[Termination "Game drawn by agreement"]

1. e4 {[%clk 0:03:00.9]} 1... e6 {[%clk 0:02:59.7]} 2. d4 {[%clk 0:03:00]} 2...
d5 {[%clk 0:03:00.6]} 3. Nc3 {[%clk 0:02:59.9]} 3... Nf6 {[%clk 0:03:00.4]} 4.
Bg5 {[%clk 0:02:59.8]} 4... Be7 {[%clk 0:03:00.3]} 5. e5 {[%clk 0:03:00]} 5...
Nfd7 {[%clk 0:03:00.3]} 6. Bxe7 {[%clk 0:03:00.2]} 6... Qxe7 {[%clk 0:03:01.2]}
7. f4 {[%clk 0:03:00.2]} 7... a6 {[%clk 0:03:01.3]} 8. Nf3 {[%clk 0:03:00.3]}
8... c5 {[%clk 0:03:01.2]} 9. Qd2 {[%clk 0:03:00.3]} 9... Nc6 {[%clk 0:03:00]}
10. dxc5 {[%clk 0:03:00.6]} 10... Nxc5 {[%clk 0:02:59.1]} 11. Bd3 {[%clk
0:03:00.2]} 11... b5 {[%clk 0:02:56.6]} 12. Ne2 {[%clk 0:02:57.7]} 12... Bb7
{[%clk 0:02:54]} 13. O-O {[%clk 0:02:48.8]} 13... Rc8 {[%clk 0:02:44.5]} 14.
Ned4 {[%clk 0:02:46.4]} 14... Qc7 {[%clk 0:02:30.9]} 15. Nxc6 {[%clk 0:02:41.7]}
15... Qxc6 {[%clk 0:02:26.2]} 16. Nd4 {[%clk 0:02:37.2]} 16... Qb6 {[%clk
0:02:20.7]} 17. Qe3 {[%clk 0:02:23.7]} 17... Nxd3 {[%clk 0:02:14.7]} 18. cxd3
{[%clk 0:02:23.7]} 18... O-O {[%clk 0:02:03.1]} 19. Rac1 {[%clk 0:02:16.7]}
19... a5 {[%clk 0:01:29.6]} 20. Qf2 {[%clk 0:02:02.3]} 20... b4 {[%clk
0:01:19.7]} 21. Nf3 {[%clk 0:01:28.9]} 21... Qxf2+ {[%clk 0:01:07.9]} 22. Kxf2
{[%clk 0:01:29]} 22... Ba6 {[%clk 0:01:06.4]} 23. Ke3 {[%clk 0:01:27.6]} 23...
Rfd8 {[%clk 0:01:03.7]} 24. Nd4 {[%clk 0:01:24.5]} 24... Bb7 {[%clk 0:00:49.4]}
25. g3 {[%clk 0:01:21.4]} 25... Kf8 {[%clk 0:00:49]} 1/2-1/2

[Event "*** SCC Grand Prix: Titled Tuesday Blitz"]
[Site "Chess.com"]
[Date "2020.07.21"]
[Round "6"]
[White "vpsetter"]
[Black "Agibileg"]
[Result "1-0"]
[WhiteElo "2606"]
[BlackElo "2416"]
[TimeControl "180+1"]
[EndTime "11:05:02 PDT"]
[Termination "vpsetter won by checkmate"]

1. e4 {[%clk 0:03:00.4]} 1... c5 {[%clk 0:02:59.3]} 2. Nf3 {[%clk 0:03:00.6]}
2... e6 {[%clk 0:02:59.9]} 3. d4 {[%clk 0:03:00.7]} 3... cxd4 {[%clk 0:03:00.8]}
4. Nxd4 {[%clk 0:03:01.6]} 4... Nc6 {[%clk 0:03:01.5]} 5. Nc3 {[%clk 0:03:01.3]}
5... a6 {[%clk 0:03:02]} 6. Nb3 {[%clk 0:02:55.2]} 6... b5 {[%clk 0:03:00.2]} 7.
g4 {[%clk 0:02:51.8]} 7... Qc7 {[%clk 0:02:58]} 8. Bg2 {[%clk 0:02:50.3]} 8...
Bd6 {[%clk 0:02:57.2]} 9. h4 {[%clk 0:02:37]} 9... Nge7 {[%clk 0:02:57.1]} 10.
Be3 {[%clk 0:02:14.5]} 10... Bf4 {[%clk 0:02:55.7]} 11. Qd2 {[%clk 0:02:12]}
11... Bxe3 {[%clk 0:02:54.8]} 12. Qxe3 {[%clk 0:02:12]} 12... Ne5 {[%clk
0:02:54.2]} 13. Qg3 {[%clk 0:02:04]} 13... d6 {[%clk 0:02:52.1]} 14. O-O-O
{[%clk 0:01:54.7]} 14... Bb7 {[%clk 0:02:50.8]} 15. f4 {[%clk 0:01:53]} 15...
Nc4 {[%clk 0:02:50.4]} 16. f5 {[%clk 0:01:52]} 16... b4 {[%clk 0:02:48.3]} 17.
Ne2 {[%clk 0:01:51]} 17... Rc8 {[%clk 0:02:45.6]} 18. fxe6 {[%clk 0:00:42.8]}
18... fxe6 {[%clk 0:02:36.4]} 19. Ned4 {[%clk 0:00:38.4]} 19... Qd7 {[%clk
0:02:32]} 20. g5 {[%clk 0:00:32.1]} 20... Ng6 {[%clk 0:02:24.2]} 21. Bh3 {[%clk
0:00:31.3]} 21... Nf8 {[%clk 0:02:23.4]} 22. Nxe6 {[%clk 0:00:19.3]} 22... Nxe6
{[%clk 0:02:23.3]} 23. Nd4 {[%clk 0:00:19.3]} 23... Nxd4 {[%clk 0:02:20.5]} 24.
Bxd7+ {[%clk 0:00:18.7]} 24... Kxd7 {[%clk 0:02:21.2]} 25. Rxd4 {[%clk
0:00:18.9]} 25... Rhf8 {[%clk 0:02:22.1]} 26. Rhd1 {[%clk 0:00:17.7]} 26... Rc6
{[%clk 0:02:08.2]} 27. Rxc4 {[%clk 0:00:17.5]} 27... Rxc4 {[%clk 0:02:06.8]} 28.
Qxd6+ {[%clk 0:00:17.5]} 28... Ke8 {[%clk 0:02:07.2]} 29. Qd7# {[%clk
0:00:17.7]} 1-0

[Event "*** SCC Grand Prix: Titled Tuesday Blitz"]
[Site "Chess.com"]
[Date "2020.07.21"]
[Round "6"]
[White "BakaPG"]
[Black "axvesik"]
[Result "1-0"]
[WhiteElo "2651"]
[BlackElo "2475"]
[TimeControl "180+1"]
[EndTime "11:05:04 PDT"]
[Termination "BakaPG won by resignation"]

1. e4 {[%clk 0:03:00.9]} 1... e6 {[%clk 0:02:58.8]} 2. d4 {[%clk 0:03:00]} 2...
d5 {[%clk 0:02:59.7]} 3. e5 {[%clk 0:02:59.8]} 3... c5 {[%clk 0:02:58.4]} 4. c3
{[%clk 0:03:00.4]} 4... Nc6 {[%clk 0:02:58.9]} 5. Nf3 {[%clk 0:03:00.5]} 5...
Qb6 {[%clk 0:02:56.2]} 6. a3 {[%clk 0:02:59.5]} 6... Bd7 {[%clk 0:02:54]} 7. b4
{[%clk 0:02:58.4]} 7... cxd4 {[%clk 0:02:54.7]} 8. cxd4 {[%clk 0:02:58.5]} 8...
Rc8 {[%clk 0:02:55.6]} 9. Bb2 {[%clk 0:02:57.8]} 9... Na5 {[%clk 0:02:53.7]} 10.
Nbd2 {[%clk 0:02:57.6]} 10... Nc4 {[%clk 0:02:53.7]} 11. Nxc4 {[%clk 0:02:57.7]}
11... dxc4 {[%clk 0:02:54.3]} 12. Rc1 {[%clk 0:02:57.9]} 12... Qa6 {[%clk
0:02:51.8]} 13. d5 {[%clk 0:02:53.6]} 13... exd5 {[%clk 0:02:50.7]} 14. Qxd5
{[%clk 0:02:52.7]} 14... Ne7 {[%clk 0:02:51.4]} 15. Qe4 {[%clk 0:02:51.3]} 15...
Be6 {[%clk 0:02:45.5]} 16. Be2 {[%clk 0:02:46]} 16... Nf5 {[%clk 0:02:20.8]} 17.
O-O {[%clk 0:02:38.3]} 17... Be7 {[%clk 0:02:20.3]} 18. g4 {[%clk 0:02:33.5]}
18... Nh6 {[%clk 0:02:17.7]} 19. Nd4 {[%clk 0:02:30.7]} 19... b5 {[%clk
0:01:57.7]} 20. a4 {[%clk 0:02:20.8]} 20... bxa4 {[%clk 0:01:32.4]} 21. Nxe6
{[%clk 0:02:11.4]} 21... Qxe6 {[%clk 0:01:32.1]} 22. Bxc4 {[%clk 0:02:11.5]}
22... Rxc4 {[%clk 0:01:06.1]} 23. Rxc4 {[%clk 0:02:03.5]} 23... O-O {[%clk
0:01:05.4]} 24. Ra1 {[%clk 0:01:59.4]} 24... Rd8 {[%clk 0:00:56.6]} 25. Rxa4
{[%clk 0:01:52.1]} 25... Rd1+ {[%clk 0:00:41]} 26. Kg2 {[%clk 0:01:50.2]} 26...
g6 {[%clk 0:00:38.2]} 27. Rxa7 {[%clk 0:01:42.8]} 27... Bh4 {[%clk 0:00:31.6]}
28. Ra8+ {[%clk 0:01:34.9]} 28... Kg7 {[%clk 0:00:31]} 29. Rc6 {[%clk
0:01:33.1]} 29... Qxg4+ {[%clk 0:00:24.3]} 30. Qxg4 {[%clk 0:01:32.8]} 30...
Nxg4 {[%clk 0:00:25]} 31. e6+ {[%clk 0:01:33.2]} 1-0